Workbook

Sheet 예제7.1
A1: 문 | B1: 1 | C1: 2 | D1: 3
A2: 관찰도수 | B2: 23 | C2: 36 | D2: 31
A3: 기대도수
A5: 카이제곱검정 p-값

Sheet 예제7.2
A1: 범주 | B1: 남자 | C1: 여자 | D1: 합계
A2: 관측빈도수 | B2: 30 | C2: 20 | D2: =SUM(B2:C2) -> 50
A3: 기대확률 | B3: 0.5 | C3: 0.5 | D3: =SUM(B3:C3) -> 1
A4: 기대도수 | B4: =$D$2*B3 -> 25 | C4: =$D$2*C3 -> 25 | D4: 50

Sheet 예제7.3
A1: 관찰도수 | F1: 기대도수
B2: A | C2: B | D2: 합계 | G2: A | H2: B | I2: 합계
A3: 청소년 | B3: 20 | C3: 30 | D3: =SUM(B3:C3) -> 50 | F3: 청소년 | G3: =$D$5*$D3/$D$5*B$5/$D$5 -> 25 | H3: =$D$5*$D3/$D$5*C$5/$D$5 -> 25 | I3: =SUM(G3:H3) -> 50
A4: 장년 | B4: 30 | C4: 20 | D4: =SUM(B4:C4) -> 50 | F4: 장년 | G4: =$D$5*$D4/$D$5*B$5/$D$5 -> 25 | H4: =$D$5*$D4/$D$5*C$5/$D$5 -> 25 | I4: =SUM(G4:H4) -> 50
A5: 합계 | B5: =SUM(B3:B4) -> 50 | C5: =SUM(C3:C4) -> 50 | D5: =SUM(B5:C5) -> 100 | F5: 합계 | G5: =SUM(G3:G4) -> 50 | H5: =SUM(H3:H4) -> 50 | I5: =SUM(G5:H5) -> 100

Sheet 예제7.4
A1: 관찰도수 | G1: 기대도수
B2: A1 | C2: A2 | D2: A3 | E2: 합계 | H2: A1 | I2: A2 | J2: A3 | K2: 합계
A3: B1 | B3: 8 | C3: 15 | D3: 18 | E3: =SUM(B3:D3) -> 41 | G3: B1 | H3: =$E$5*$E3/$E$5*B$5/$E$5 -> 12.3 | I3: =$E$5*$E3/$E$5*C$5/$E$5 -> 16.4 | J3: 12.3 | K3: =SUM(H3:J3) -> 41
A4: B2 | B4: 22 | C4: 25 | D4: 12 | E4: =SUM(B4:D4) -> 59 | G4: B2 | H4: =$E$5*$E4/$E$5*B$5/$E$5 -> 17.7 | I4: 23.6 | J4: 17.7 | K4: =SUM(H4:J4) -> 59
A5: 합계 | B5: =SUM(B3:B4) -> 30 | C5: =SUM(C3:C4) -> 40 | D5: =SUM(D3:D4) -> 30 | E5: =SUM(B5:D5) -> 100 | G5: 합계 | H5: =SUM(H3:H4) -> 30 | I5: =SUM(I3:I4) -> 40 | J5: =SUM(J3:J4) -> 30 | K5: =SUM(H5:J5) -> 100

Sheet 예제7.5
A1: 관찰도수
B2: A | C2: B | D2: C | E2: 합계
A3: 30이하 | B3: 120 | C3: 30 | D3: 50 | E3: =SUM(B3:D3) -> 200
A4: 30~44 | B4: 10 | C4: 75 | D4: 15 | E4: =SUM(B4:D4) -> 100
A5: 45이상 | B5: 10 | C5: 30 | D5: 60 | E5: =SUM(B5:D5) -> 100
A6: 합계 | B6: =SUM(B3:B5) -> 140 | C6: =SUM(C3:C5) -> 135 | D6: =SUM(D3:D5) -> 125 | E6: =SUM(B6:D6) -> 400
A8: 기대도수
B9: A | C9: B | D9: C | E9: 합계
A10: 30이하 | B10: =$E$6*$E3/$E$6*B$6/$E$6 -> 70 | C10: =$E$6*$E3/$E$6*C$6/$E$6 -> 67.5 | D10: 62.5 | E10: =SUM(B10:D10) -> 200
A11: 30~44 | B11: =$E$6*$E4/$E$6*B$6/$E$6 -> 35 | C11: 33.75 | D11: 31.25 | E11: =SUM(B11:D11) -> 100
A12: 45이상 | B12: 35 | C12: 33.75 | D12: 31.25 | E12: =SUM(B12:D12) -> 100
A13: 합계 | B13: =SUM(B10:B12) -> 140 | C13: =SUM(C10:C12) -> 135 | D13: =SUM(D10:D12) -> 125 | E13: =SUM(B13:D13) -> 400
B15: 카이제곱검정 p-값

Sheet 연습문제
C2: 응답자 | D2: 성별 | E2: 폰 색상 | F2: 응답자 | G2: 성별 | H2: 폰 색상 | K2: 뉴스 | L2: 연속극 | M2: 스포츠 | N2: 오락 | O2: 영화 | P2: 교양 | Q2: 합계 | S2: 행정구역 | T2: 발생건수 | U2: 인구수
C3: 1 | D3: 남 | E3: 백색 | F3: 16 | G3: 여 | H3: 백색 | J3: 남 | K3: 513 | L3: 109 | M3: 172 | N3: 103 | O3: 75 | P3: 28 | Q3: =SUM(K3:P3) -> 1000 | S3: 서울특별시 | T3: 53569 | U3: 9853972
C4: 2 | D4: 남 | E4: 백색 | F4: 17 | G4: 여 | H4: 백색 | J4: 여 | K4: 153 | L4: 616 | M4: 10 | N4: 127 | O4: 69 | P4: 25 | Q4: =SUM(K4:P4) -> 1000 | S4: 부산광역시 | T4: 14893 | U4: 3655437
C5: 3 | D5: 남 | E5: 백색 | F5: 18 | G5: 여 | H5: 백색 | S5: 대구광역시 | T5: 15562 | U5: 2473990
C6: 4 | D6: 남 | E6: 백색 | F6: 19 | G6: 여 | H6: 백색 | S6: 인천광역시 | T6: 17633 | U6: 2466338
C7: 5 | D7: 남 | E7: 검은색 | F7: 20 | G7: 여 | H7: 백색 | K7: 감상/관람 | L7: TV시청 | M7: 취미/오락 | N7: 스포츠/여행 | O7: 수면/가사 | P7: 합계 | S7: 광주광역시 | T7: 7853 | U7: 1350948
C8: 6 | D8: 남 | E8: 검은색 | F8: 21 | G8: 여 | H8: 백색 | J8: 남 | K8: 80 | L8: 396 | M8: 95 | N8: 167 | O8: 240 | P8: =SUM(K8:O8) -> 978 | S8: 대전광역시 | T8: 7728 | U8: 1365961
C9: 7 | D9: 남 | E9: 검은색 | F9: 22 | G9: 여 | H9: 백색 | J9: 여 | K9: 88 | L9: 428 | M9: 41 | N9: 64 | O9: 346 | P9: =SUM(K9:O9) -> 967 | S9: 울산광역시 | T9: 5115 | U9: 1012110
C10: 8 | D10: 남 | E10: 검은색 | F10: 23 | G10: 여 | H10: 백색 | J10: 합계 | K10: =SUM(K8:K9) -> 168 | L10: =SUM(L8:L9) -> 824 | M10: =SUM(M8:M9) -> 136 | N10: =SUM(N8:N9) -> 231 | O10: =SUM(O8:O9) -> 586 | P10: =SUM(K10:O10) -> 1945 | S10: 경기도 | T10: 53172 | U10: 8937752
C11: 9 | D11: 남 | E11: 검은색 | F11: 24 | G11: 여 | H11: 백색 | S11: 강원도 | T11: 13179 | U11: 1484536
C12: 10 | D12: 남 | E12: 검은색 | F12: 25 | G12: 여 | H12: 검은색 | S12: 충청북도 | T12: 11850 | U12: 1462621
C13: 11 | D13: 남 | E13: 검은색 | F13: 26 | G13: 여 | H13: 검은색 | K13: 감상/관람 | L13: TV시청 | M13: 취미/오락 | N13: 스포츠/여행 | O13: 수면/가사 | P13: 합계 | S13: 충청남도 | T13: 13830 | U13: 1840410
C14: 12 | D14: 남 | E14: 유채색 | F14: 27 | G14: 여 | H14: 유채색 | J14: 중졸이하 | K14: 25 | L14: 234 | M14: 29 | N14: 33 | O14: 172 | P14: =SUM(K14:O14) -> 493 | S14: 전라북도 | T14: 14526 | U14: 1887239
C15: 13 | D15: 남 | E15: 유채색 | F15: 28 | G15: 여 | H15: 유채색 | J15: 고졸 | K15: 93 | L15: 425 | M15: 71 | N15: 112 | O15: 285 | P15: =SUM(K15:O15) -> 986 | S15: 전라남도 | T15: 13017 | U15: 1994287
C16: 14 | D16: 남 | E16: 유채색 | F16: 29 | G16: 여 | H16: 유채색 | J16: 대재이상 | K16: 50 | L16: 165 | M16: 36 | N16: 86 | O16: 129 | P16: =SUM(K16:O16) -> 466 | S16: 경상북도 | T16: 21948 | U16: 2716218
C17: 15 | D17: 남 | E17: 유채색 | F17: 30 | G17: 여 | H17: 유채색 | J17: 합계 | K17: =SUM(K14:K16) -> 168 | L17: =SUM(L14:L16) -> 824 | M17: =SUM(M14:M16) -> 136 | N17: =SUM(N14:N16) -> 231 | O17: =SUM(O14:O16) -> 586 | P17: =SUM(K17:O17) -> 1945 | S17: 경상남도 | T17: 16218 | U17: 2970929
S18: 제주도 | T18: 3048 | U18: 512541
